bitfinex/quotes_SOLUSD_20250310
["timestamp","ask_amount","ask_price","bid_price","bid_amount"]
[1741633845965,69.06408609,117.5,117.49,75.55656436]
[1741633846520,81.737,117.52,117.49,75.55656436]
[1741633846726,81.737,117.52,117.51,75.55656436]
[1741633846727,81.767,117.52,117.51,75.55656436]
[1741633846948,0.03,117.52,117.51,75.55656436]
[1741633848163,22.08324886,117.52,117.45,0.14216157]
[1741633848441,0.03,117.52,117.48,75.55656436]
[1741633848644,0.03,117.52,117.51,75.55656436]
[1741633849671,0.34767017,117.52,117.49,75.55656436]
[1741633849866,18.64964886,117.5,117.48,75.55656436]
[1741633850047,81.737,117.49,117.46,75.55656436]
[1741633850545,81.737,117.49,117.44,75.55656436]
[1741633850546,0.14216157,117.47,117.44,75.55656436]
[1741633850753,18.64964886,117.45,117.4,75.55656436]
[1741633851056,18.64964886,117.43,117.39,75.55656436]
[1741633851472,18.64964886,117.43,117.33,11.35229442]
[1741633851473,18.64964886,117.43,117.41,75.55656436]
[1741633851966,18.64964886,117.43,117.35,0.14216157]
[1741633852153,18.64964886,117.43,117.4,75.55656436]
[1741633852356,307.417,117.44,117.41,75.55656436]
[1741633852551,18.64964886,117.43,117.4,75.55656436]
[1741633852758,81.737,117.42,117.39,75.55656436]
[1741633853068,81.737,117.42,117.38,75.55656436]
[1741633853368,18.64964886,117.4,117.37,75.55656436]
[1741633853569,18.64964886,117.38,117.35,75.55656436]
[1741633853747,81.737,117.37,117.35,75.55656436]
[1741633853947,81.737,117.37,117.36,75.55656436]
[1741633854147,100.38664886,117.36,117.33,75.55656436]
[1741633854357,225.66,117.35,117.32,75.55656436]
[1741633854570,18.64964886,117.34,117.28,20.0]
[1741633854869,18.64964886,117.32,117.3,75.55656436]
[1741633855066,18.64964886,117.32,117.24,84.08586436]
[1741633855271,81.737,117.33,117.3,75.55656436]
[1741633855565,81.737,117.33,117.32,75.55656436]
[1741633855773,81.737,117.33,117.25,0.28432314]
[1741633856072,307.397,117.35,117.32,75.55656436]
[1741633856245,225.66,117.35,117.34,75.55656436]
[1741633857976,225.66,117.35,117.34,159.77749029]
[1741633858149,225.66,117.35,117.34,159.91965186]
[1741633858497,225.66,117.35,117.34,75.55656436]
[1741633860856,225.66,117.35,117.34,84.07876436]
[1741633861162,243.96,117.4,117.35,18.933972]
[1741633861360,225.7,117.4,117.35,0.14216157]
[1741633861578,36.88964886,117.39,117.31,0.063]
[1741633861881,18.24,117.39,117.33,0.28432314]
[1741633862065,225.7,117.4,117.38,0.28432314]
[1741633862291,225.7,117.4,117.38,20.14216157]
[1741633862444,225.7,117.4,117.39,75.55656436]
[1741633862651,225.7,117.4,117.31,0.063]
[1741633862977,94.20621322,117.38,117.33,75.55656436]
[1741633863148,18.64964886,117.36,117.33,75.55656436]
[1741633863348,18.4,117.35,117.32,75.55656436]
[1741633863548,18.4,117.35,117.31,75.61956436]
[1741633863745,18.4,117.35,117.33,75.55656436]
[1741633864280,18.4,117.35,117.32,75.55656436]
[1741633864485,100.38664886,117.34,117.32,75.55656436]
[1741633864648,18.4,117.35,117.33,75.55656436]
[1741633864853,18.64964886,117.34,117.32,75.55656436]
[1741633865048,100.137,117.35,117.31,75.61956436]
[1741633865346,6.6518,117.38,117.34,75.55656436]
[1741633865347,18.32,117.38,117.34,75.55656436]
[1741633865582,18.32,117.38,117.36,75.55656436]
[1741633865759,100.52881043,117.37,117.33,75.55656436]
[1741633865957,0.14216157,117.34,117.31,0.063]
[1741633866162,81.737,117.36,117.31,0.063]
[1741633866369,18.64964886,117.35,117.33,75.55656436]
[1741633866747,244.51181043,117.34,117.31,75.61956436]
[1741633866953,18.64964886,117.33,117.31,0.063]
[1741633867145,20.14216157,117.32,117.31,0.063]
[1741633867347,196.22753636,117.32,117.31,0.063]
[1741633867577,20.0,117.28,117.18,75.55656436]
[1741633867753,18.64964886,117.26,117.18,75.55656436]
[1741633867954,225.72,117.25,117.22,75.55656436]
[1741633868478,0.14216157,117.23,117.13,141.1007]
[1741633868768,18.64964886,117.22,117.18,75.55656436]
[1741633868976,0.28432314,117.21,117.18,75.55656436]
[1741633869277,0.14216157,117.18,117.07,137.5]
[1741633869493,0.14216157,117.14,117.1,75.55656436]
[1741633869654,244.16,117.13,117.1,75.55656436]
[1741633869868,244.16,117.13,117.11,75.55656436]
[1741633870265,18.64964886,117.12,117.06,75.61956436]
[1741633870667,18.64964886,117.12,117.08,75.55656436]
[1741633870872,18.64964886,117.12,117.09,75.61956436]
[1741633871500,18.64964886,117.12,117.09,0.063]
[1741633871799,18.79181043,117.12,117.1,75.55656436]
[1741633871987,18.4,117.11,117.09,0.063]
[1741633872374,0.14216157,117.1,117.06,75.61956436]
[1741633872578,225.82,117.13,117.09,75.55656436]
[1741633872776,225.82,117.13,117.06,20.063]
[1741633872777,262.99181043,117.13,117.06,20.063]
[1741633872997,18.64964886,117.12,117.09,75.55656436]
[1741633873183,244.2,117.13,117.11,75.55656436]
[1741633873385,244.2,117.13,117.06,20.063]
[1741633873599,244.2,117.13,117.11,75.55656436]
[1741633873903,0.28432314,117.11,117.09,75.55656436]
[1741633874073,0.14216157,117.11,117.08,75.55656436]
[1741633874398,244.2,117.13,117.1,75.55656436]
[1741633874605,244.2,117.13,117.11,75.55656436]
[1741633874771,18.64964886,117.12,117.1,75.55656436]
[1741633875174,244.2,117.13,117.06,75.61956436]
[1741633875385,244.2,117.13,117.07,0.14216157]
[1741633875598,225.82,117.13,117.12,151.11312872]
[1741633875792,225.82,117.13,117.12,151.25529029]
[1741633876214,81.737,117.18,117.15,20.0]
[1741633876215,226.04,117.18,117.15,20.0]
[1741633876497,226.04,117.18,117.16,20.28432314]
[1741633876793,0.15593743,117.19,117.18,8.81812314]
[1741633876997,0.18316511,117.2,117.18,151.25529029]
[1741633877182,0.18316511,117.2,117.19,75.55656436]
[1741633878781,0.18316511,117.2,117.19,75.69872593]
[1741633878987,0.18316511,117.2,117.19,75.55656436]
[1741633879216,0.18316511,117.2,117.19,84.08966436]
[1741633879591,0.18316511,117.2,117.19,75.55656436]
[1741633879814,0.18316511,117.2,117.19,84.08966436]
[1741633879991,0.18316511,117.2,117.19,75.55656436]
[1741633880383,0.15579434,117.22,117.19,75.8408875]
[1741633880709,0.15579434,117.22,117.2,94.49053636]
[1741633880907,0.1645082,117.23,117.21,159.92905186]
[1741633881210,0.1645082,117.23,117.22,151.25529029]
[1741633881602,0.1645082,117.23,117.22,75.55656436]
[1741633881790,226.21632488,117.24,117.23,0.14216157]
[1741633881991,18.32,117.36,117.27,0.14216157]
[1741633882208,18.32,117.36,117.34,75.55656436]
[1741633882908,0.03,117.35,117.34,75.55656436]
[1741633883618,81.737,117.38,117.34,75.55656436]
[1741633883619,94.707,117.38,117.34,75.55656436]
[1741633883920,18.22,117.4,117.37,75.55656436]
[1741633884209,76.467,117.44,117.39,75.55656436]
[1741633884391,18.25,117.45,117.43,75.55656436]
[1741633884392,0.03,117.45,117.43,75.55656436]
[1741633884592,0.03,117.45,117.44,75.55656436]
[1741633886097,18.67964886,117.45,117.42,75.55656436]
[1741633886706,0.14216157,117.44,117.41,75.55656436]
[1741633886896,0.28432314,117.44,117.4,75.55656436]
[1741633887387,0.28432314,117.44,117.39,75.55656436]
[1741633887883,170.67321322,117.43,117.38,75.55656436]
[1741633888089,0.14216157,117.41,117.37,75.55656436]
[1741633888283,18.79181043,117.41,117.37,75.55656436]
[1741633888799,18.933972,117.42,117.37,75.55656436]
[1741633889005,18.64964886,117.42,117.39,75.55656436]
[1741633889312,18.64964886,117.42,117.41,75.55656436]
[1741633889709,0.17353982,117.42,117.41,75.55656436]
[1741633890309,18.82318868,117.42,117.4,75.55656436]
[1741633890509,18.82318868,117.42,117.36,75.55656436]
[1741633890690,18.82318868,117.42,117.39,75.55656436]
[1741633890887,18.64964886,117.4,117.38,75.55656436]
[1741633891091,17.94,117.39,117.38,75.55656436]
[1741633891305,17.94,117.39,117.36,75.55656436]
[1741633891508,18.64964886,117.38,117.36,75.55656436]
[1741633891688,17.94,117.39,117.35,75.55656436]
[1741633891892,302.247,117.38,117.36,75.55656436]
[1741633892086,302.247,117.38,117.31,0.14216157]
[1741633892388,302.247,117.38,117.36,75.55656436]
[1741633893490,18.79181043,117.37,117.34,75.55656436]
[1741633893801,0.14216157,117.36,117.27,0.14216157]
[1741633894015,18.64964886,117.34,117.32,75.55656436]
[1741633894305,76.467,117.35,117.33,75.55656436]
[1741633894882,76.467,117.37,117.34,75.55656436]
[1741633895186,76.467,117.37,117.27,137.78432314]
[1741633895187,18.64964886,117.36,117.27,137.78432314]
[1741633895392,76.467,117.35,117.32,75.55656436]
[1741633895815,95.25881043,117.34,117.31,75.55656436]
[1741633895992,95.25881043,117.34,117.3,75.55656436]
[1741633896191,95.25881043,117.34,117.32,75.55656436]
[1741633896192,95.11664886,117.34,117.32,75.55656436]
[1741633896393,0.03,117.38,117.34,0.28432314]
[1741633896708,0.17353982,117.42,117.37,20.0]
[1741633896914,0.17353982,117.42,117.4,75.55656436]
[1741633897214,0.17353982,117.42,117.36,8.66276157]
[1741633897393,0.17145512,117.43,117.41,75.8408875]
[1741633897594,0.17145512,117.43,117.38,2.0]
[1741633897595,0.17145512,117.43,117.42,151.11312872]
[1741633897799,0.17145512,117.43,117.42,75.55656436]
[1741633898188,0.17145512,117.43,117.42,151.11312872]
[1741633899205,0.17145512,117.43,117.42,75.55656436]
[1741633899898,0.17145512,117.43,117.42,151.11312872]
[1741633900101,0.21338946,117.45,117.43,0.14216157]
[1741633900298,0.21338946,117.45,117.44,95.69872593]
[1741633900516,225.93549497,117.48,117.46,0.28432314]
[1741633900831,0.15549497,117.48,117.46,171.39745186]
[1741633900992,0.15549497,117.48,117.47,171.25529029]
[1741633901192,0.15549497,117.48,117.47,171.11312872]
[1741633901398,0.15549497,117.48,117.47,75.55656436]
[1741633901904,0.15549497,117.48,117.47,151.11312872]
[1741633902096,0.15549497,117.48,117.47,75.55656436]
[1741633903390,76.467,117.47,117.42,75.55656436]
[1741633903592,76.467,117.47,117.46,75.55656436]
[1741633906207,76.467,117.47,117.42,75.55656436]
[1741633906398,76.467,117.47,117.46,75.55656436]
[1741633907209,0.15549497,117.48,117.46,75.55656436]
[1741633907411,0.15549497,117.48,117.47,75.55656436]
[1741633907606,18.9473054,117.48,117.42,75.55656436]
[1741633907811,76.167,117.47,117.46,75.55656436]
[1741633908103,76.197,117.47,117.46,75.55656436]
[1741633909424,0.03,117.47,117.46,75.55656436]
[1741633909624,0.18495363,117.47,117.46,75.55656436]
[1741633910019,0.18495363,117.47,117.46,151.39745186]
[1741633910327,0.18368383,117.49,117.47,151.25529029]
[1741633910532,0.18368383,117.49,117.48,151.11312872]
[1741633911123,0.18368383,117.49,117.48,75.55656436]
[1741633911630,0.18368383,117.49,117.47,75.55656436]
[1741633911929,3.58828383,117.49,117.42,75.55656436]
[1741633912105,94.087,117.48,117.45,75.55656436]
[1741633912304,76.167,117.47,117.44,75.55656436]
[1741633913028,76.167,117.47,117.46,75.55656436]
[1741633913405,76.167,117.47,117.45,75.55656436]
[1741633913626,79.5722,117.47,117.44,75.55656436]
[1741633913823,79.5722,117.47,117.45,75.55656436]
[1741633914128,94.81664886,117.46,117.43,75.55656436]
[1741633914308,0.28432314,117.45,117.41,75.55656436]
[1741633914499,76.167,117.44,117.41,75.55656436]
[1741633914923,76.167,117.44,117.42,75.55656436]
[1741633915122,18.64964886,117.46,117.43,75.55656436]
[1741633915123,76.167,117.46,117.43,75.55656436]
[1741633915328,76.167,117.46,117.37,0.14216157]
[1741633915329,76.167,117.46,117.45,75.55656436]
[1741633915517,79.5724,117.46,117.43,75.55656436]
[1741633915933,76.167,117.46,117.44,75.55656436]
[1741633916104,76.167,117.45,117.44,75.55656436]
[1741633916606,76.167,117.45,117.37,8.80422314]
[1741633916607,76.167,117.45,117.37,27.453872]
[1741633916808,76.167,117.45,117.44,75.55656436]
[1741633917016,94.81664886,117.47,117.44,75.55656436]
[1741633917232,17.92,117.48,117.46,75.55656436]
[1741633917427,17.92,117.48,117.47,75.55656436]
[1741633918429,0.18368383,117.49,117.47,151.11312872]
[1741633918627,0.18368383,117.49,117.48,151.11312872]
[1741633918832,0.18368383,117.49,117.48,151.39745186]
[1741633919013,225.79612889,117.5,117.48,151.11312872]
[1741633919225,225.79612889,117.5,117.49,75.55656436]
[1741633919612,225.79612889,117.5,117.49,75.69872593]
[1741633919830,0.16918116,117.51,117.49,75.69872593]
[1741633920007,0.16918116,117.51,117.5,75.69872593]
[1741633920209,0.20961773,117.52,117.5,151.25529029]
[1741633920408,0.18522796,117.55,117.53,20.14216157]
[1741633920607,0.18522796,117.55,117.54,0.14216157]
[1741633920835,0.18522796,117.55,117.54,75.55656436]
[1741633921821,0.18522796,117.55,117.54,151.11312872]
[1741633922035,0.18522796,117.55,117.54,75.55656436]
[1741633922420,97.65502796,117.55,117.52,75.55656436]
[1741633922722,94.25222796,117.55,117.54,75.55656436]
[1741633922925,0.18522796,117.55,117.54,151.25529029]
[1741633923121,0.16266216,117.56,117.55,0.14216157]
[1741633923320,0.16266216,117.56,117.55,75.55656436]
[1741633923541,0.16266216,117.56,117.55,75.69872593]
[1741633923732,0.03,117.59,117.56,0.14216157]
[1741633923924,0.03,117.59,117.57,75.55656436]
[1741633924121,0.03,117.59,117.57,75.69872593]
[1741633924337,0.03,117.59,117.57,75.55656436]
[1741633926443,301.687,117.63,117.57,75.55656436]
[1741633926820,225.52,117.63,117.62,75.55656436]
[1741633927222,225.52,117.63,117.59,20.0]
[1741633927431,225.52,117.63,117.55,150.34457547]
[1741633927633,152.0078875,117.62,117.57,75.55656436]
[1741633927830,94.047,117.61,117.57,75.55656436]
[1741633928147,17.88,117.61,117.6,75.55656436]
[1741633928349,76.167,117.6,117.54,75.55656436]
[1741633928527,76.167,117.6,117.57,75.55656436]
[1741633929058,76.167,117.6,117.59,75.55656436]
[1741633929261,94.047,117.6,117.57,75.55656436]
[1741633929420,94.047,117.6,117.54,75.55656436]
[1741633929421,94.047,117.6,117.58,75.55656436]
[1741633929625,0.17393992,117.58,117.49,7.0754]
[1741633929821,0.17393992,117.58,117.4,50.0]
[1741633929822,0.28432314,117.55,117.45,146.0138]
[1741633930024,18.64964886,117.53,117.49,75.55656436]
[1741633930252,17.88,117.52,117.49,75.55656436]
[1741633930547,17.88,117.52,117.5,75.55656436]
[1741633930752,18.64964886,117.51,117.47,75.61956436]
[1741633930958,94.20621322,117.51,117.47,0.063]
[1741633931131,18.64964886,117.49,117.47,0.063]
[1741633931457,18.64964886,117.49,117.48,0.063]
[1741633931635,76.167,117.5,117.48,75.61956436]
[1741633932221,17.88,117.51,117.49,75.55656436]
[1741633932443,17.88,117.51,117.5,75.55656436]
[1741633932746,225.4,117.54,117.5,75.55656436]
[1741633932919,225.4,117.54,117.53,75.55656436]
[1741633933590,244.04964886,117.54,117.53,75.55656436]
[1741633933868,225.4,117.54,117.52,75.55656436]
[1741633934032,225.4,117.54,117.53,75.55656436]
[1741633936730,225.4,117.54,117.53,151.39745186]
[1741633936944,225.4,117.54,117.53,151.11312872]
[1741633937141,225.4,117.54,117.53,75.55656436]
[1741633937868,225.4,117.54,117.53,159.62152872]
[1741633938244,225.4,117.54,117.53,159.90585186]
[1741633939662,0.03,117.56,117.53,159.90585186]
[1741633939663,0.03,117.56,117.53,181.17695186]
[1741633939870,0.17393992,117.58,117.57,20.28432314]
[1741633940044,0.17393992,117.58,117.57,95.8408875]
[1741633940560,0.15665008,117.59,117.57,190.04710072]
[1741633940744,225.54136747,117.61,117.6,20.28432314]
[1741633941076,225.54136747,117.61,117.6,151.11312872]
[1741633941662,225.54136747,117.61,117.6,159.90085186]
[1741633942673,0.16550774,117.62,117.6,178.55050072]
[1741633942863,0.18167632,117.65,117.62,0.28432314]
[1741633943044,0.18167632,117.65,117.62,75.8408875]
[1741633943372,0.18167632,117.65,117.62,75.55656436]
[1741633943588,0.18167632,117.65,117.62,84.3427875]
[1741633943750,0.18167632,117.65,117.63,0.28432314]
[1741633943959,0.18167632,117.65,117.63,171.39745186]
[1741633944457,0.18440864,117.66,117.64,190.04710072]
[1741633944652,0.03,117.68,117.67,20.28432314]
[1741633944883,225.32,117.71,117.68,0.28432314]
[1741633945066,225.32,117.71,117.7,151.11312872]
[1741633945573,225.32,117.71,117.7,151.39745186]
[1741633945874,225.26,117.77,117.75,0.28432314]
[1741633946077,225.26,117.77,117.76,75.55656436]
[1741633946280,225.26,117.84,117.8,20.28432314]
[1741633946451,225.26,117.84,117.83,75.55656436]
[1741633946966,225.26,117.84,117.83,151.39745186]
[1741633947859,51.60118255,117.86,117.84,18.933972]
[1741633948056,77.40177383,117.88,117.85,75.8408875]
[1741633948281,77.40177383,117.88,117.87,75.55656436]
[1741633948622,328.53705416,117.89,117.87,75.8408875]
[1741633948878,328.53705416,117.89,117.87,20.14216157]
[1741633949074,328.53705416,117.89,117.88,75.55656436]
[1741633949569,328.53705416,117.89,117.86,137.5]
[1741633949753,328.69022114,117.89,117.88,151.39745186]
[1741633949954,0.16975521,117.9,117.88,166.73369399]
[1741633950150,0.16975521,117.9,117.89,75.55656436]
[1741633950378,0.16975521,117.9,117.86,0.28432314]
[1741633950573,0.16975521,117.9,117.89,75.55656436]
[1741633950975,75.72631957,117.9,117.79,6.8865]
[1741633951272,93.37656436,117.89,117.84,75.55656436]
[1741633951476,93.37656436,117.89,117.8,137.78432314]
[1741633951676,93.37656436,117.89,117.79,4.19690811]
[1741633951677,18.64964886,117.88,117.82,75.55656436]
[1741633951859,18.64964886,117.88,117.79,141.69690811]
[1741633952066,94.20621322,117.88,117.82,75.55656436]
[1741633952274,17.82,117.89,117.84,75.55656436]
[1741633952481,94.20621322,117.88,117.82,75.55656436]
[1741633952683,75.55656436,117.87,117.82,75.55656436]
[1741633952983,93.37656436,117.86,117.85,79.9552693]
[1741633953161,112.31053636,117.86,117.85,79.9552693]
[1741633953362,112.02621322,117.86,117.85,72.5814693]
[1741633953562,112.31053636,117.86,117.85,72.5814693]
[1741633953973,36.46964886,117.86,117.85,72.5814693]
[1741633954191,115.70433636,117.86,117.85,72.5814693]
[1741633954400,93.37656436,117.86,117.85,72.5814693]
[1741633954699,64.60733363,117.87,117.81,75.55656436]
[1741633954875,64.60733363,117.87,117.8,12.94260075]
[1741633954876,300.47656436,117.86,117.8,12.94260075]
[1741633955061,300.47656436,117.86,117.8,88.49916511]
[1741633955260,224.92,117.86,117.82,75.55656436]
[1741633955690,224.92,117.86,117.83,75.55656436]
[1741633955874,224.92,117.87,117.85,75.55656436]
[1741633956067,224.92,117.87,117.86,75.55656436]
[1741633957187,224.92,117.87,117.81,18.64964886]
[1741633957370,224.92,117.87,117.83,75.55656436]
[1741633957689,224.92,117.87,117.78,79.79619481]
[1741633957690,303.87006436,117.87,117.78,79.79619481]
[1741633957878,75.55656436,117.85,117.8,75.55656436]
[1741633958269,75.55656436,117.85,117.79,75.55656436]
[1741633958470,75.55656436,117.82,117.77,75.55656436]
[1741633958772,17.8,117.81,117.79,75.55656436]
[1741633958975,17.8,117.81,117.8,75.55656436]
[1741633959496,17.8,117.81,117.76,52.61796172]
[1741633959794,17.8,117.81,117.79,75.55656436]
[1741633960002,17.8,117.81,117.78,75.55656436]
[1741633960179,21.1953,117.81,117.78,75.55656436]
[1741633960489,17.8,117.81,117.76,128.17452608]
[1741633960672,17.8,117.81,117.77,75.55656436]
[1741633961092,75.55656436,117.78,117.76,52.61796172]
[1741633961277,224.88,117.77,117.76,52.61796172]
[1741633961793,224.88,117.77,117.76,128.17452608]
[1741633961974,224.88,117.77,117.76,52.61796172]
[1741633962973,302.98386436,117.77,117.76,52.61796172]
[1741633963390,321.91783636,117.77,117.76,48.93106172]
[1741633964083,323.91783636,117.77,117.76,48.93106172]
[1741633964282,300.43656436,117.77,117.76,48.93106172]
[1741633964493,224.88,117.77,117.76,48.93106172]
[1741633964871,224.88,117.77,117.76,124.48762608]
[1741633965291,224.88,117.77,117.76,48.93106172]
[1741633965484,224.88,117.77,117.76,124.48762608]
[1741633965677,224.88,117.77,117.76,48.93106172]
[1741633966190,224.88,117.77,117.76,124.48762608]
[1741633966392,224.88,117.77,117.76,132.97942608]
[1741633966592,224.88,117.77,117.76,151.91339808]
[1741633966894,224.88,117.77,117.76,227.46996244]
[1741633967299,224.88,117.77,117.76,151.91339808]
[1741633967507,224.88,117.77,117.76,132.97942608]
[1741633967791,224.88,117.77,117.76,151.97639808]
[1741633967978,224.88,117.77,117.76,227.53296244]
[1741633968178,224.88,117.77,117.76,365.03296244]
[1741633968396,224.94,117.82,117.77,18.933972]
[1741633968601,224.94,117.82,117.81,75.55656436]
[1741633969485,224.94,117.82,117.78,75.55656436]
[1741633969800,225.12166603,117.82,117.81,75.55656436]
[1741633970188,225.12166603,117.82,117.79,75.55656436]
[1741633970382,225.12166603,117.82,117.81,75.55656436]
[1741633970880,225.12166603,117.82,117.8,75.55656436]
[1741633971499,225.12166603,117.82,117.81,75.55656436]
[1741633971999,0.18178404,117.84,117.81,84.04446436]
[1741633972000,0.02552814,117.84,117.81,84.04446436]
[1741633972199,0.02552814,117.84,117.81,75.55656436]
[1741633972398,0.02552814,117.84,117.82,75.55656436]
[1741633972583,0.02552814,117.84,117.83,75.55656436]
[1741633972899,0.02552814,117.84,117.82,75.55656436]
[1741633973087,0.02552814,117.84,117.81,75.55656436]
[1741633973286,0.02552814,117.84,117.82,75.55656436]
[1741633973610,0.02552814,117.84,117.83,75.55656436]
[1741633973997,0.02552814,117.84,117.83,84.04336436]
[1741633974302,0.02552814,117.84,117.83,159.59992872]
[1741633974597,0.02552814,117.84,117.78,81.77293896]
[1741633974598,0.02552814,117.84,117.81,8.4882]
[1741633974804,0.02552814,117.84,117.83,75.55656436]
[1741633975695,0.14455922,117.85,117.83,292.29422872]
[1741633975904,0.17258957,117.86,117.84,20.20627737]
[1741633976198,0.17258957,117.86,117.85,102.97583636]
[1741633976405,0.17258957,117.86,117.85,84.04186436]
[1741633976697,0.17258957,117.86,117.85,8.4853]
[1741633976904,0.17258957,117.86,117.85,84.04186436]
[1741633977994,0.17258957,117.86,117.85,75.55656436]
[1741633978398,0.17258957,117.86,117.85,84.04186436]
[1741633978594,0.17258957,117.86,117.85,102.97583636]
[1741633978791,0.17258957,117.86,117.85,84.04186436]
[1741633978990,0.17258957,117.86,117.85,102.97583636]
[1741633979193,0.17865502,117.91,117.88,20.0]
[1741633979500,0.17865502,117.91,117.89,0.28432314]
[1741633979703,0.17865502,117.91,117.89,151.11312872]
[1741633979998,0.17865502,117.91,117.89,75.55656436]
[1741633980197,0.17865502,117.91,117.88,75.55656436]
[1741633980404,17.76,117.89,117.87,75.55656436]
[1741633980775,17.76,117.89,117.86,75.55656436]
[1741633981200,17.76,117.89,117.83,3.6811]
[1741633981201,94.49053636,117.88,117.78,79.40626436]
[1741633981409,75.55656436,117.86,117.8,75.55656436]
[1741633981583,75.55656436,117.86,117.81,75.55656436]
[1741633981901,75.55656436,117.86,117.8,75.55656436]
[1741633982094,75.55656436,117.86,117.79,75.55656436]
[1741633982095,75.55656436,117.84,117.79,75.55656436]
[1741633982286,300.31656436,117.83,117.78,75.55656436]
[1741633982496,17.74,117.82,117.77,75.55656436]
[1741633982703,17.74,117.82,117.81,75.55656436]
[1741633983515,17.74,117.82,117.79,75.55656436]
[1741633983724,75.55656436,117.8,117.76,0.063]
[1741633984082,17.74,117.82,117.76,75.61956436]
[1741633984083,75.55656436,117.81,117.76,75.61956436]
[1741633984282,17.74,117.82,117.76,0.063]
[1741633984283,19.74,117.82,117.76,0.063]
[1741633984506,81.8,117.81,117.76,0.063]
[1741633984711,157.35656436,117.8,117.76,0.063]
[1741633985010,17.74,117.82,117.78,75.55656436]
[1741633985216,17.74,117.82,117.8,75.55656436]
[1741633985390,17.74,117.82,117.79,75.55656436]
[1741633985590,17.74,117.82,117.78,75.55656436]
[1741633985998,224.76,117.83,117.81,75.55656436]
[1741633986202,17.74,117.82,117.78,75.55656436]
[1741633986607,224.8,117.89,117.81,75.55656436]
[1741633986810,81.8,117.88,117.87,75.55656436]
[1741633987113,224.8,117.89,117.85,75.55656436]
[1741633987494,306.6,117.89,117.84,75.55656436]
[1741633987898,75.55656436,117.87,117.78,225.25596436]
[1741633988110,157.35656436,117.87,117.82,75.55656436]
[1741633988417,81.8,117.87,117.83,75.55656436]
[1741633988599,94.20621322,117.86,117.8,75.55656436]
[1741633988795,18.64964886,117.84,117.76,0.063]
[1741633989110,18.64964886,117.82,117.78,75.55656436]
[1741633989313,94.20621322,117.82,117.76,75.61956436]
[1741633989513,18.64964886,117.8,117.76,0.063]
[1741633989692,382.17656436,117.79,117.76,0.063]
[1741633989892,18.64964886,117.78,117.76,0.063]
[1741633990112,306.62,117.79,117.76,0.063]
[1741633990322,306.62,117.79,117.77,75.55656436]
[1741633990623,306.62,117.79,117.76,0.063]
[1741633990624,306.62,117.79,117.78,75.55656436]
[1741633990818,224.82,117.79,117.78,151.39745186]
[1741633991124,17.74,117.84,117.79,0.14216157]
[1741633991301,17.74,117.84,117.78,288.75529029]
[1741633991302,17.74,117.84,117.83,75.55656436]
[1741633991497,17.74,117.85,117.82,75.55656436]
[1741633991693,175.09656436,117.85,117.8,75.55656436]
[1741633991918,99.54,117.85,117.8,75.55656436]
[1741633992092,20.28432314,117.81,117.76,0.063]
[1741633992297,75.55656436,117.78,117.76,0.063]
[1741633992514,336.74621322,117.77,117.76,0.063]
[1741633992727,336.88837479,117.77,117.76,0.063]
[1741633992932,337.03053636,117.77,117.76,0.063]
[1741633993099,20.14216157,117.74,117.73,0.063]
[1741633993419,18.64964886,117.75,117.73,0.063]
[1741633993808,224.82,117.77,117.73,8.5569]
[1741633994009,224.82,117.77,117.74,0.28432314]
[1741633994323,224.82,117.77,117.76,0.14216157]
[1741633994613,224.82,117.77,117.76,151.11312872]
[1741633994814,224.82,117.77,117.76,151.39745186]
[1741633995022,224.82,117.77,117.76,75.69872593]
[1741633995220,224.82,117.77,117.76,151.39745186]
[1741633995426,242.54,117.84,117.77,0.14216157]
[1741633995729,242.54,117.84,117.83,75.55656436]
[1741633996104,242.54,117.84,117.82,75.55656436]
[1741633996418,242.54,117.84,117.78,213.05656436]
[1741633996419,242.54,117.84,117.81,75.55656436]
[1741633997023,242.54,117.84,117.76,0.14216157]
[1741633997227,324.34,117.84,117.79,75.55656436]
[1741633997403,324.34,117.84,117.81,75.55656436]
[1741633997913,242.54,117.84,117.81,75.55656436]
[1741633998110,242.54,117.84,117.8,75.55656436]
[1741633998640,242.54,117.84,117.81,75.55656436]
[1741633999005,75.55656436,117.82,117.73,0.063]
[1741633999212,75.55656436,117.81,117.75,75.55656436]